bitfinex/quotes_BTCUSD_20260311
["timestamp","ask_amount","ask_price","bid_price","bid_amount"]
[1773201176882,0.00022001,69652.0,69643.0,0.0270685]
[1773201177207,0.00022001,69652.0,69643.0,0.0002]
[1773201177409,0.14305364,69654.0,69643.0,0.0002]
[1773201177600,0.14305364,69656.0,69643.0,0.0002]
[1773201177785,0.07322038,69657.0,69643.0,0.0002]
[1773201177994,0.00144,69657.0,69643.0,0.0002]
[1773201178183,0.01616608,69664.0,69647.0,0.04949143]
[1773201178487,0.07177401,69664.0,69648.0,0.00144]
[1773201178689,0.07199863,69659.0,69649.0,0.07178853]
[1773201178887,0.01616608,69658.0,69649.0,0.07178853]
[1773201179268,0.01616608,69658.0,69646.0,0.07179154]
[1773201179484,0.01616608,69658.0,69646.0,0.07323154]
[1773201179737,0.01616608,69658.0,69646.0,0.07179154]
[1773201180822,0.01616608,69658.0,69645.0,0.07179163]
[1773201181026,0.0879456,69658.0,69645.0,0.07179163]
[1773201181631,0.01616608,69657.0,69643.0,0.07199443]
[1773201181781,0.01616608,69656.0,69643.0,0.0002]
[1773201182207,0.01616608,69656.0,69643.0,0.07199469]
[1773201182410,0.0101824,69656.0,69643.0,0.07199469]
[1773201183032,0.00144,69658.0,69647.0,0.00673948]
[1773201183531,0.00022001,69659.0,69647.0,0.00673948]
[1773201183840,0.08937418,69669.0,69647.0,0.00673948]
[1773201184031,0.08937418,69669.0,69645.0,0.00144]
[1773201184032,0.07192524,69667.0,69651.0,0.00547376]
[1773201184396,0.07192524,69667.0,69652.0,0.00144]
[1773201184397,0.00166001,69666.0,69652.0,0.00144]
[1773201184802,0.07343111,69666.0,69653.0,0.07178441]
[1773201185123,0.00166001,69666.0,69653.0,0.07178441]
[1773201185323,0.001,69656.0,69653.0,0.07178441]
[1773201185521,0.07343109,69666.0,69653.0,0.07178441]
[1773201185846,0.08959717,69666.0,69653.0,0.07178441]
[1773201186061,0.01782609,69666.0,69653.0,0.07178441]
[1773201186447,0.01782609,69666.0,69653.0,0.07278441]
[1773201186822,0.01782609,69666.0,69653.0,0.07178441]
[1773201188570,0.00166001,69666.0,69653.0,0.07178441]
[1773201190189,0.01782609,69666.0,69653.0,0.07178441]
[1773201192002,0.00166001,69666.0,69656.0,0.04949143]
[1773201192207,0.0001552,69667.0,69656.0,0.04949143]
[1773201192361,0.00144,69666.0,69656.0,0.04949143]
[1773201192757,0.0001552,69667.0,69656.0,0.04949143]
[1773201193269,0.0001552,69667.0,69653.0,0.07178441]
[1773201194577,0.00022001,69671.0,69657.0,0.04949143]
[1773201194846,0.00022001,69671.0,69660.0,0.04949143]
[1773201195758,0.00022001,69671.0,69658.0,0.00144]
[1773201195938,0.00022001,69671.0,69660.0,0.04949143]
[1773201196142,0.01616608,69670.0,69653.0,0.07178441]
[1773201196463,0.01616608,69670.0,69656.0,0.00144]
[1773201197023,0.01616608,69670.0,69660.0,0.04949143]
[1773201198331,0.01760608,69670.0,69660.0,0.04949143]
[1773201198956,0.01616608,69670.0,69660.0,0.04949143]
[1773201199161,0.01760608,69670.0,69661.0,0.07177617]
[1773201200393,0.01768655,69670.0,69661.0,0.07177617]
[1773201200693,0.00152047,69670.0,69661.0,0.07177617]
[1773201200991,8.047e-05,69670.0,69661.0,0.07177617]
[1773201203304,0.00206001,69673.0,69661.0,0.07177617]
[1773201203502,0.00062001,69673.0,69661.0,0.18181648]
[1773201206460,0.01406318,69671.0,69657.0,0.07178029]
[1773201206635,0.01550318,69670.0,69657.0,0.07178029]
[1773201207562,0.01550318,69670.0,69660.0,0.04949143]
[1773201210469,0.00144,69670.0,69661.0,0.07177617]
[1773201210854,0.01384255,69669.0,69654.0,0.0717829]
[1773201211167,0.01384255,69669.0,69654.0,0.0732229]
[1773201211520,0.01384255,69669.0,69660.0,0.0002]
[1773201212330,0.07342701,69670.0,69660.0,0.0002]
[1773201212331,0.00166001,69670.0,69660.0,0.0002]
[1773201212839,0.07342731,69670.0,69660.0,0.0002]
[1773201213272,0.001,69669.0,69660.0,0.0002]
[1773201214983,0.01550256,69670.0,69660.0,0.0002]
[1773201215340,0.01650256,69670.0,69660.0,0.0002]
[1773201216091,0.01550256,69670.0,69660.0,0.0002]
[1773201216678,0.01650256,69670.0,69660.0,0.0002]
[1773201217157,0.01506256,69670.0,69660.0,0.0002]
[1773201217357,0.01506256,69670.0,69660.0,0.04969143]
[1773201218304,0.01406256,69670.0,69660.0,0.04969143]
[1773201218807,0.01506256,69670.0,69661.0,0.07177617]
[1773201219394,0.01406256,69670.0,69661.0,0.07177617]
[1773201220872,0.01406256,69670.0,69660.0,0.0002]
[1773201221785,0.01230002,69670.0,69660.0,0.0002]
[1773201221993,0.0110799,69670.0,69660.0,0.0002]
[1773201222424,0.00152047,69671.0,69660.0,0.0002]
[1773201222626,0.00152047,69671.0,69660.0,0.04966576]
[1773201223030,0.00152047,69671.0,69661.0,0.07177617]
[1773201225058,0.00152047,69671.0,69655.0,0.07178235]
[1773201225258,0.01372325,69664.0,69646.0,0.07214603]
[1773201226034,0.01372325,69662.0,69646.0,0.07214603]
[1773201226230,0.01372325,69660.0,69646.0,0.07214603]
[1773201226434,0.00144,69659.0,69646.0,0.07214603]
[1773201227174,0.00144,69659.0,69646.0,0.07199083]
[1773201227479,0.00144,69659.0,69649.0,0.04946576]
[1773201229440,0.00144,69659.0,69650.0,0.0717875]
[1773201233345,0.08618667,69659.0,69650.0,0.0717875]
[1773201234243,0.0732183,69659.0,69649.0,0.0719875]
[1773201234449,0.01296837,69658.0,69649.0,0.0719875]
[1773201235066,0.01296837,69658.0,69649.0,0.0002]
[1773201239785,0.01296837,69658.0,69649.0,0.07198853]
[1773201243625,0.01296837,69658.0,69643.0,0.0002]
[1773201243626,0.0962133,69656.0,69643.0,0.0002]
[1773201243825,0.0962133,69656.0,69626.0,0.28708192]
[1773201243827,0.01260251,69652.0,69635.0,0.0002]
[1773201244034,0.01260251,69652.0,69632.0,0.07193665]
[1773201244035,0.01260251,69649.0,69632.0,0.0001306]
[1773201244435,0.01260251,69649.0,69632.0,0.07193652]
[1773201244842,0.01260251,69649.0,69632.0,0.0001306]
[1773201245040,0.14290583,69649.0,69632.0,0.0001306]
[1773201245364,0.01261127,69649.0,69633.0,0.07200481]
[1773201245523,0.01361127,69649.0,69633.0,0.07200481]
[1773201245963,0.07178957,69648.0,69633.0,0.0002]
[1773201246269,0.01253085,69647.0,69633.0,0.0002]
[1773201247574,0.01253085,69647.0,69637.0,0.04946576]
[1773201247945,0.01353085,69647.0,69637.0,0.12126626]
[1773201248211,0.0853222,69647.0,69637.0,0.12126626]
[1773201248411,0.0867622,69647.0,69637.0,0.04946576]
[1773201248690,0.0857622,69647.0,69637.0,0.04946576]
[1773201248911,0.0124669,69646.0,69635.0,0.07180234]
[1773201249941,0.07179266,69645.0,69633.0,0.07200433]
[1773201250141,0.07179266,69645.0,69634.0,0.00144]
[1773201250601,0.0124669,69646.0,69634.0,0.00144]
[1773201250799,0.08425893,69646.0,69634.0,0.00144]
[1773201251726,0.08425893,69646.0,69634.0,0.00164]
[1773201252274,0.08425893,69646.0,69635.0,0.07180297]
[1773201252275,0.07179203,69646.0,69635.0,0.07180297]
[1773201252474,0.07179203,69646.0,69635.0,0.0842447]
[1773201252698,0.07179203,69646.0,69634.0,0.07344297]
[1773201252699,0.08424613,69646.0,69634.0,0.07200297]
[1773201253122,0.07179203,69646.0,69634.0,0.07200297]
[1773201253433,0.0124541,69645.0,69634.0,0.07200297]
[1773201254435,0.08424696,69645.0,69634.0,0.07200297]
[1773201257535,0.07179286,69645.0,69634.0,0.0002]
[1773201257826,0.07179286,69645.0,69631.0,0.0002]
[1773201257827,0.0124541,69643.0,69631.0,0.0002]
[1773201258469,0.07179575,69642.0,69631.0,0.0002]
[1773201258670,0.0124541,69640.0,69631.0,0.0002]
[1773201260633,0.07179884,69639.0,69631.0,0.0002]
[1773201260833,0.01204958,69638.0,69631.0,0.0002]
[1773201262351,0.01204958,69638.0,69627.0,0.0002]
[1773201262731,0.01198328,69635.0,69627.0,0.0002]
[1773201264758,0.071804,69634.0,69627.0,0.0002]
[1773201264959,0.08371666,69634.0,69627.0,0.0002]
[1773201266042,0.08471666,69634.0,69627.0,0.0002]
[1773201266562,0.08371666,69634.0,69627.0,0.0002]
[1773201267173,0.08471666,69634.0,69627.0,0.0002]
[1773201267391,0.08371666,69634.0,69627.0,0.0002]
[1773201267799,0.08471666,69634.0,69627.0,0.0002]
[1773201268347,0.08571666,69634.0,69627.0,0.0002]
[1773201268767,0.08471666,69634.0,69627.0,0.0002]
[1773201268968,0.08371666,69634.0,69627.0,0.0002]
[1773201269175,0.08471666,69634.0,69627.0,0.0002]
[1773201270379,0.08571666,69634.0,69627.0,0.0002]
[1773201270586,0.08471666,69634.0,69627.0,0.0002]
[1773201270786,0.01171418,69633.0,69627.0,0.0002]
[1773201271502,0.01164845,69631.0,69627.0,0.0002]
[1773201272777,0.01264845,69631.0,69627.0,0.0002]
[1773201274661,0.01364845,69631.0,69627.0,0.0002]
[1773201274865,0.01158314,69630.0,69626.0,0.0002]
[1773201275024,0.01158314,69630.0,69621.0,0.0004]
[1773201275025,0.01158314,69630.0,69618.0,0.0001306]
[1773201275427,0.01151824,69628.0,69618.0,0.0001306]
[1773201275955,0.07181122,69627.0,69618.0,0.0001306]
[1773201276175,0.01151824,69626.0,69618.0,0.0001306]
[1773201276539,0.01151824,69626.0,69618.0,0.00024278]
[1773201278064,0.01251824,69626.0,69618.0,0.00024278]
[1773201278258,0.08326703,69625.0,69618.0,0.00024278]
[1773201278968,0.01145375,69624.0,69618.0,0.00024278]
[1773201280266,0.08277419,69624.0,69618.0,0.00024278]
[1773201280848,0.01095896,69624.0,69618.0,0.00024278]
[1773201281054,0.07181202,69627.0,69618.0,0.0720629]
[1773201281253,0.07181202,69627.0,69618.0,0.0722629]
[1773201281654,0.07181202,69627.0,69618.0,0.00044278]
[1773201285923,0.07281202,69627.0,69618.0,0.00044278]
[1773201286728,0.07181202,69627.0,69618.0,0.00044278]
[1773201287147,0.07181328,69625.0,69618.0,0.00044278]
[1773201287714,0.07181328,69625.0,69618.0,0.00092158]
[1773201288520,0.07181328,69626.0,69618.0,0.07274192]
[1773201289003,0.01034579,69631.0,69618.0,0.07274192]
[1773201289004,0.07180295,69636.0,69619.0,0.0051139]
[1773201289208,0.07180181,69637.0,69627.0,0.0051139]
[1773201289209,0.00144,69637.0,69627.0,0.0051139]
[1773201289422,0.07363998,69638.0,69627.0,0.0051139]
[1773201289616,0.07363998,69638.0,69625.0,0.00144]
[1773201289809,0.00022001,69631.0,69627.0,0.0004804]
[1773201290653,0.00022001,69631.0,69628.0,0.07181019]
[1773201291888,0.07385999,69638.0,69628.0,0.07181019]
[1773201292071,0.0399561,69638.0,69628.0,0.07181019]
[1773201292930,0.0399561,69638.0,69621.0,0.07181741]
[1773201292931,0.00166001,69638.0,69621.0,0.07181741]
[1773201293119,0.01065806,69637.0,69621.0,0.07181741]
[1773201293324,0.01065806,69637.0,69622.0,0.00144]
[1773201294966,0.07180091,69637.0,69623.0,0.07181534]
[1773201297173,0.07346092,69638.0,69627.0,0.04953274]
[1773201297174,0.00166001,69638.0,69627.0,0.04953274]
[1773201297376,0.07346001,69638.0,69623.0,0.07181534]
[1773201297770,0.00022001,69637.0,69623.0,0.07181534]
[1773201298161,0.00166001,69638.0,69627.0,0.04953274]
[1773201298358,0.00166001,69638.0,69623.0,0.07181534]
[1773201299435,0.07345991,69638.0,69623.0,0.07181534]
[1773201299837,0.07345991,69638.0,69600.0,0.48254052]
[1773201299838,0.07345991,69638.0,69599.0,0.000129]
[1773201299840,0.01134849,69624.0,69599.0,0.000129]
[1773201300151,0.01134849,69609.0,69585.0,0.07185424]
[1773201300360,0.56001453,69620.0,69576.0,0.10123066]
[1773201300361,0.56001453,69620.0,69582.0,0.0014]
[1773201300362,0.01134849,69599.0,69582.0,0.0014]
[1773201300576,0.01134849,69599.0,69576.0,0.17449435]
[1773201300577,0.01134849,69597.0,69576.0,0.17449435]
[1773201301178,0.01128777,69595.0,69576.0,0.17309435]
[1773201301377,0.01128777,69595.0,69576.0,0.17449435]
[1773201301782,0.01154277,69595.0,69576.0,0.17449435]
[1773201302553,0.01154277,69595.0,69570.0,0.23136213]
[1773201302554,0.01154277,69595.0,69564.0,0.07749598]
[1773201302555,0.01128777,69594.0,69564.0,0.07749598]
[1773201302800,0.01128777,69589.0,69564.0,0.07749598]
[1773201303032,0.00144,69588.0,69564.0,0.07749598]
[1773201303212,0.01247178,69585.0,69564.0,0.07749598]
[1773201303618,0.01247178,69579.0,69564.0,0.07749589]
[1773201303819,0.04953274,69580.0,69564.0,0.07749589]
[1773201303820,0.01247178,69577.0,69564.0,0.07749589]
[1773201304384,0.01247178,69577.0,69564.0,0.07769589]
[1773201304990,0.01247178,69577.0,69564.0,0.0058953]
[1773201305190,0.01243034,69575.0,69564.0,0.0058953]
[1773201305389,0.01227747,69575.0,69564.0,0.0058953]
[1773201305614,0.07185043,69589.0,69564.0,0.07777107]
[1773201305794,0.01235391,69577.0,69564.0,0.07777107]
[1773201305997,0.00144,69576.0,69564.0,0.07777107]
[1773201306697,0.01379391,69576.0,69564.0,0.07777107]
[1773201308111,0.01303742,69574.0,69564.0,0.0058953]
[1773201308514,0.01303742,69574.0,69564.0,0.07777128]
[1773201310044,0.01288458,69574.0,69564.0,0.07777128]
[1773201310608,0.07186695,69573.0,69564.0,0.07777128]
[1773201311438,0.07186385,69577.0,69564.0,0.07777128]
[1773201311602,0.00144,69573.0,69564.0,0.07777128]
[1773201311804,0.00144,69576.0,69564.0,0.07777128]
[1773201312208,0.01290443,69583.0,69564.0,0.07777128]
[1773201312209,0.00144,69586.0,69567.0,0.1487856]
[1773201312458,0.00144,69590.0,69568.0,0.00144]
[1773201312657,0.0721021,69593.0,69569.0,0.00068392]
[1773201312658,0.000255,69593.0,69569.0,0.00068392]
[1773201312835,0.00144,69592.0,69572.0,0.00068392]
[1773201313617,0.00104,69592.0,69572.0,0.00068392]
[1773201314043,0.01387732,69592.0,69572.0,0.00068392]
[1773201315062,0.08468569,69591.0,69574.0,0.00070162]
[1773201315216,0.08468569,69591.0,69575.0,0.00144]
[1773201317066,0.08468569,69591.0,69576.0,0.07186386]
[1773201317938,0.0850365,69591.0,69576.0,0.07186386]
[1773201320809,0.0850365,69591.0,69571.0,0.10123066]
[1773201320810,0.0131187,69589.0,69550.0,0.1492156]
[1773201321006,0.0131187,69589.0,69565.0,0.07187452]
[1773201322728,0.0141187,69589.0,69565.0,0.07187452]
[1773201322877,0.01304965,69587.0,69565.0,0.07187452]
[1773201324380,0.01404965,69587.0,69565.0,0.07187452]
[1773201324587,0.01404965,69587.0,69553.0,0.10772556]
[1773201324588,0.01298036,69579.0,69555.0,0.07188555]
[1773201324828,0.0130823,69579.0,69555.0,0.07188555]
[1773201325004,0.0130823,69579.0,69550.0,0.07393292]
[1773201325005,0.01298036,69577.0,69552.0,0.00017254]
[1773201325484,0.00939686,69577.0,69552.0,0.00017254]
[1773201327059,0.01179214,69575.0,69552.0,0.00017254]
[1773201327413,0.01179214,69575.0,69552.0,0.00037254]
[1773201327967,0.01133356,69575.0,69552.0,0.00037254]
[1773201328571,0.01233356,69575.0,69552.0,0.00037254]
[1773201329368,0.01304792,69573.0,69553.0,0.07188762]
[1773201329569,0.07186592,69574.0,69553.0,0.07188762]
[1773201329570,0.01304792,69571.0,69553.0,0.07188762]
[1773201329749,0.01274213,69571.0,69553.0,0.07188762]
[1773201330437,0.01274213,69571.0,69554.0,0.00010305]
[1773201330687,0.01274213,69571.0,69560.0,0.04961514]
[1773201331066,0.01234213,69571.0,69560.0,0.04961514]
[1773201331466,0.07187005,69570.0,69561.0,0.07187935]
[1773201331843,0.07186592,69574.0,69562.0,0.00036974]
[1773201332046,0.07186513,69575.0,69563.0,0.00144]
[1773201332047,0.07186561,69575.0,69563.0,0.00144]
[1773201332234,0.01278073,69577.0,69564.0,0.00036974]
[1773201332235,0.00144,69576.0,69564.0,0.00036974]
[1773201332664,0.00144,69576.0,69563.0,0.00144]
[1773201332860,0.01422073,69576.0,69563.0,0.00144]
[1773201334760,0.07186489,69575.0,69564.0,0.07187625]
[1773201335204,0.07330489,69576.0,69564.0,0.07187625]
[1773201335371,0.07186282,69577.0,69564.0,0.07187625]
[1773201335581,0.07186282,69577.0,69565.0,5.101e-05]
[1773201335790,0.07186282,69577.0,69564.0,0.07187625]
[1773201337183,0.07186179,69578.0,69564.0,0.07235932]
[1773201337378,0.07186179,69578.0,69565.0,0.00049859]
[1773201339626,0.01364576,69577.0,69564.0,0.07187625]
[1773201341633,0.07186386,69576.0,69564.0,0.07187625]
[1773201345355,0.08558982,69576.0,69564.0,0.07187625]
[1773201346894,0.07186179,69578.0,69564.0,0.07187625]
[1773201347124,0.00010194,69579.0,69564.0,0.07187625]
[1773201347300,0.00010194,69579.0,69569.0,0.07187109]
[1773201347710,0.00010194,69579.0,69570.0,0.00144]
[1773201348060,0.00022001,69583.0,69571.0,0.00047195]
[1773201348279,0.00022001,69583.0,69573.0,0.00047195]
[1773201349091,0.21590751,69590.0,69573.0,0.00047914]
[1773201349370,0.07328945,69590.0,69574.0,0.07186592]
[1773201349596,0.01374373,69589.0,69574.0,0.0723347]
[1773201350777,0.01374373,69589.0,69574.0,0.07186592]
[1773201351390,0.07185146,69588.0,69574.0,0.07186592]
[1773201351638,0.08582659,69588.0,69574.0,0.07186592]
[1773201356986,0.0860466,69588.0,69574.0,0.07186592]
[1773201357180,0.01419514,69588.0,69574.0,0.07186592]
[1773201358065,0.00584001,69592.0,69574.0,0.07186592]
[1773201358066,0.00144,69598.0,69578.0,0.09919384]
[1773201358270,0.00023,69600.0,69588.0,0.01336407]
[1773201358271,1e-08,69599.0,69588.0,0.01336407]
[1773201358674,0.00144001,69599.0,69588.0,0.01336407]
[1773201359000,0.00144001,69599.0,69589.0,0.07185043]
[1773201360438,0.00144001,69599.0,69589.0,0.12144735]
[1773201360639,0.00144001,69599.0,69589.0,0.07185043]
[1773201360867,0.00144001,69599.0,69588.0,0.07185043]
[1773201361046,0.00144001,69599.0,69589.0,0.04959692]
[1773201361438,1e-08,69599.0,69589.0,0.04959692]
[1773201361642,0.00144001,69599.0,69589.0,0.04959692]
[1773201362142,0.00022001,69602.0,69589.0,0.04959692]
[1773201363305,0.00022001,69602.0,69590.0,0.0718494]
[1773201363492,0.01470358,69604.0,69590.0,0.0718494]
[1773201363704,0.01614358,69604.0,69590.0,0.0718494]
[1773201365160,0.07205089,69608.0,69586.0,0.00144]
[1773201365161,0.00022001,69608.0,69595.0,0.07184424]
[1773201365508,0.00022001,69608.0,69598.0,0.04959692]
[1773201365693,0.00022001,69608.0,69595.0,0.07328424]
[1773201366274,6.713e-05,69602.0,69595.0,0.07328424]
[1773201367416,0.00059444,69608.0,69598.0,0.04959692]
[1773201368887,0.01418125,69607.0,69595.0,0.07328424]
[1773201373172,0.01402838,69607.0,69595.0,0.07328424]
[1773201374678,0.01424839,69607.0,69595.0,0.07328424]
[1773201378435,0.01362406,69606.0,69595.0,0.07328424]
[1773201382603,0.00022001,69609.0,69596.0,0.04959692]
[1773201382807,0.00033222,69609.0,69599.0,0.04959692]
[1773201384861,0.00022001,69607.0,69600.0,0.07183908]
[1773201385250,0.00022001,69607.0,69588.0,0.0002]
[1773201385251,0.01318523,69605.0,69589.0,0.07184837]
[1773201385742,0.01318523,69603.0,69590.0,0.04959692]
[1773201386168,0.01318523,69603.0,69589.0,0.07184837]
[1773201386999,0.01318523,69601.0,69588.0,0.07205118]
[1773201387217,0.01318523,69601.0,69588.0,0.0002]
[1773201388290,0.01418523,69601.0,69588.0,0.0002]
[1773201390030,0.0132688,69599.0,69588.0,0.0002]
[1773201390230,0.0132688,69597.0,69588.0,0.0002]
[1773201390582,0.0132688,69597.0,69582.0,0.07185766]
[1773201391943,0.0142688,69597.0,69582.0,0.07185766]
[1773201392242,0.01316874,69595.0,69582.0,0.07185766]
[1773201393142,0.01316874,69595.0,69588.0,0.0002]
[1773201394306,0.08501379,69595.0,69588.0,0.0002]
[1773201394706,0.08601379,69595.0,69588.0,0.0002]
[1773201395000,0.08701379,69595.0,69588.0,0.0002]
[1773201395160,0.08845379,69595.0,69588.0,0.0002]
[1773201395367,0.08745379,69595.0,69588.0,0.0002]
[1773201396159,0.08601379,69595.0,69588.0,0.0002]
[1773201396327,0.07284505,69595.0,69588.0,0.0002]
[1773201396767,0.07184505,69595.0,69588.0,0.0002]
[1773201396969,0.08504312,69598.0,69588.0,0.0002]
[1773201397143,0.01320198,69598.0,69588.0,0.0002]
[1773201398030,0.07184081,69599.0,69588.0,0.0002]
[1773201398265,0.01310406,69598.0,69588.0,0.0002]
[1773201398471,0.01310406,69596.0,69588.0,0.0002]
[1773201400484,0.07184424,69595.0,69588.0,0.0002]
[1773201401767,0.0695451,69595.0,69588.0,0.0002]
[1773201405887,0.01271539,69594.0,69588.0,0.0002]
[1773201416169,0.06976511,69595.0,69588.0,0.0002]
[1773201417871,0.08192734,69595.0,69588.0,0.0002]
[1773201418853,0.06976511,69595.0,69588.0,0.0002]
[1773201419102,0.01216223,69594.0,69588.0,0.0002]
[1773201419767,0.01207564,69592.0,69581.0,0.0002]
[1773201419987,0.04957673,69591.0,69581.0,0.0002]
[1773201420195,0.01207564,69590.0,69582.0,0.00144]
[1773201421079,0.01207564,69590.0,69588.0,0.0002]
[1773201422006,0.0718463,69593.0,69588.0,0.0002]
[1773201422007,0.08384034,69589.0,69588.0,0.0004173]
[1773201422671,0.07185043,69589.0,69582.0,0.00144]
[1773201422854,0.07185043,69589.0,69581.0,0.0017707]
[1773201422855,0.01147335,69588.0,69581.0,0.0017707]
[1773201423332,0.01147335,69588.0,69581.0,0.0003307]
[1773201423953,0.0718525,69587.0,69581.0,0.0003307]
[1773201424153,0.011648,69586.0,69581.0,0.0003307]
[1773201424482,0.011648,69586.0,69581.0,0.07218923]
[1773201424629,0.07193309,69588.0,69581.0,0.07218923]
[1773201425932,0.07185043,69589.0,69581.0,0.07218923]
[1773201426076,0.00018362,69588.0,69581.0,0.07218923]
[1773201426888,0.01182224,69596.0,69581.0,0.07218923]
[1773201427090,0.07184368,69596.0,69581.0,0.07218923]
[1773201427294,0.08380656,69595.0,69581.0,0.07218923]
[1773201427615,0.04942381,69591.0,69581.0,0.07218923]
[1773201427760,0.04927087,69591.0,69581.0,0.07218923]
[1773201427960,0.0718494,69590.0,69582.0,0.07185766]
[1773201428208,0.01174193,69589.0,69581.0,0.07218883]
[1773201428372,0.01155837,69589.0,69581.0,0.07218883]
[1773201432245,0.01155837,69589.0,69575.0,0.00023]
[1773201432246,0.01155837,69589.0,69567.0,0.0720038]
[1773201432247,0.01180588,69587.0,69567.0,0.0720038]
[1773201432444,0.01180588,69579.0,69568.0,0.07187112]
[1773201432615,0.01180588,69579.0,69567.0,0.0720038]
[1773201433137,0.01324588,69579.0,69567.0,0.0720038]
[1773201433341,0.01287875,69579.0,69567.0,0.0001307]
[1773201433746,0.01272581,69579.0,69567.0,0.07200374]
[1773201434132,0.01289251,69579.0,69567.0,0.07187304]
[1773201434327,0.01146775,69577.0,69566.0,0.07331417]
[1773201434950,0.01146775,69577.0,69567.0,0.07187314]
[1773201435153,0.01163445,69577.0,69567.0,0.07187314]
[1773201435599,0.01163445,69577.0,69574.0,0.0002]
[1773201436279,0.01148149,69577.0,69567.0,0.0002]
[1773201436686,0.0001667,69577.0,69570.0,0.07187005]
[1773201437226,0.0011667,69577.0,69570.0,0.07187005]
[1773201437548,0.07302963,69577.0,69569.0,0.0004]
[1773201437719,0.08428209,69577.0,69569.0,0.0004]
[1773201437874,0.01209947,69576.0,69569.0,0.0004]
[1773201438078,0.01208257,69576.0,69569.0,0.0004]
[1773201439019,0.07186489,69575.0,69569.0,0.0004]
[1773201439994,0.07203159,69575.0,69569.0,0.0004]
[1773201440474,0.07203159,69575.0,69569.0,0.0014]
[1773201440651,0.01217778,69574.0,69569.0,0.0014]
[1773201440850,0.01202483,69574.0,69569.0,0.0014]
[1773201441015,0.01202483,69574.0,69569.0,0.0004]
[1773201441225,0.01210131,69572.0,69569.0,0.0004]
[1773201443052,0.0001667,69575.0,69569.0,0.07247094]
[1773201443390,0.07186076,69579.0,69569.0,0.07247094]
[1773201444234,0.08389916,69579.0,69569.0,0.07247094]
[1773201445340,0.08389916,69579.0,69569.0,0.0006]
[1773201445537,0.08389916,69579.0,69569.0,0.07247056]
[1773201446201,0.08389916,69579.0,69569.0,0.07284499]
[1773201446939,0.01197422,69578.0,69569.0,0.00097443]
[1773201447141,0.01197422,69578.0,69569.0,0.07284505]
[1773201447346,0.07186282,69577.0,69569.0,0.07284505]
[1773201451412,0.07186268,69578.0,69569.0,0.07284505]
[1773201452166,0.07186268,69578.0,69569.0,1e-08]
[1773201452566,0.07186268,69578.0,69569.0,0.00020001]
[1773201453004,0.00022001,69577.0,69569.0,0.00020001]
[1773201453324,0.00144,69576.0,69569.0,0.00020001]
[1773201453914,0.07330454,69576.0,69565.0,0.01192041]
[1773201454251,0.07330454,69576.0,69565.0,0.012001]
[1773201456249,0.07330454,69576.0,69566.0,0.07187419]
[1773201456483,0.07330454,69576.0,69567.0,0.01167869]
[1773201459226,0.07330454,69576.0,69568.0,0.08371743]
[1773201461487,0.07352455,69576.0,69568.0,0.01184531]
[1773201461945,0.07317544,69576.0,69568.0,0.01184531]
[1773201467365,0.00144,69576.0,69569.0,0.01155523]
[1773201467639,0.00144,69577.0,69569.0,0.01155523]
[1773201468543,0.07330361,69577.0,69569.0,0.0718702]
[1773201468745,0.07330361,69577.0,69570.0,0.01155523]
[1773201470431,0.00046232,69588.0,69570.0,0.01155523]
[1773201470432,0.00022001,69588.0,69572.0,0.01149668]
[1773201470630,0.00022001,69589.0,69572.0,0.01149668]
[1773201470929,0.07207059,69589.0,69572.0,0.01149668]
[1773201472090,0.00022001,69577.0,69572.0,0.01149668]
[1773201472285,0.00022001,69577.0,69573.0,0.07186695]
[1773201472487,0.00022001,69577.0,69574.0,0.01167639]
[1773201474020,0.00022001,69577.0,69574.0,0.01267639]
[1773201474201,0.00022001,69577.0,69574.0,0.01367639]
[1773201474409,0.00022001,69584.0,69575.0,0.08346096]
[1773201474591,0.00022001,69584.0,69576.0,0.01159607]
[1773201476558,0.00022001,69584.0,69577.0,0.07186282]
[1773201476814,0.00022001,69584.0,69577.0,0.08339998]
[1773201477117,0.07207059,69589.0,69577.0,0.07186282]
[1773201477266,0.07207059,69589.0,69578.0,0.01153716]
[1773201477466,0.00022001,69589.0,69578.0,0.01153716]
[1773201477670,0.07207047,69589.0,69578.0,0.01153716]
[1773201478882,0.07207047,69589.0,69579.0,0.07186076]
[1773201481322,0.00022001,69589.0,69580.0,0.01142148]
[1773201481497,0.07207056,69589.0,69580.0,0.01142148]
[1773201482098,0.00022001,69596.0,69580.0,0.01142148]
[1773201482307,0.07206426,69595.0,69580.0,0.01142148]
[1773201482508,0.00042581,69598.0,69580.0,0.01142148]
[1773201482931,0.07205612,69603.0,69582.0,0.01136334]
[1773201482932,0.00022001,69603.0,69582.0,0.01136334]
[1773201483331,0.0720571,69602.0,69582.0,0.01136334]
[1773201483732,0.0720571,69602.0,69584.0,0.01130545]
[1773201485002,0.0720571,69602.0,69586.0,0.01130545]
[1773201485677,0.04960388,69592.0,69579.0,0.01129284]
[1773201485855,0.00144,69596.0,69579.0,0.01129284]
[1773201486175,0.0015045,69596.0,69579.0,0.01129284]
[1773201486522,0.0015045,69596.0,69584.0,0.001]
[1773201486948,0.07184424,69595.0,69584.0,0.07185492]
[1773201487147,0.07184424,69595.0,69585.0,0.01129284]
[1773201488208,0.07184424,69595.0,69583.0,0.07185559]
[1773201488590,0.04960388,69593.0,69579.0,0.07185976]
[1773201488791,0.07184424,69595.0,69577.0,0.00144]
[1773201488792,0.00045772,69589.0,69577.0,0.00144]
[1773201489161,0.00045772,69589.0,69573.0,0.07186685]
[1773201489162,0.01071754,69586.0,69573.0,0.00144]
[1773201491521,0.07185146,69588.0,69573.0,0.07330676]
[1773201491726,0.001,69586.0,69573.0,0.07330676]
[1773201492393,0.001,69586.0,69574.0,0.0114315]
[1773201493354,0.07185146,69588.0,69574.0,0.0114315]
[1773201493576,0.07185146,69588.0,69574.0,0.08329709]
[1773201494711,0.07185146,69588.0,69574.0,0.08342789]
[1773201496096,0.07185146,69588.0,69575.0,0.01131494]
[1773201496669,0.07185146,69588.0,69575.0,0.01144574]
[1773201497321,0.07285146,69588.0,69575.0,0.01144574]
[1773201497683,0.07185146,69588.0,69577.0,0.011405]
[1773201499731,0.07185146,69588.0,69578.0,0.07186179]
[1773201499898,0.07185146,69588.0,69579.0,0.01149193]
[1773201500334,0.07185146,69589.0,69579.0,0.01149193]
[1773201501562,0.07350439,69595.0,69581.0,0.01164574]
[1773201501751,0.07350439,69595.0,69583.0,0.01164574]
[1773201503744,0.07350439,69595.0,69584.0,0.07185559]
[1773201504358,0.07350439,69595.0,69584.0,0.08358065]
[1773201505379,0.07350439,69595.0,69429.0,0.0002028]
[1773201505380,7.168e-05,69593.0,69567.0,1e-08]
[1773201505579,0.000142,69576.0,69567.0,1e-08]
[1773201505787,0.07200586,69576.0,69567.0,1e-08]
[1773201506028,0.07186386,69576.0,69567.0,1e-08]
[1773201509186,0.07286386,69576.0,69567.0,1e-08]
[1773201511291,0.07186386,69577.0,69567.0,1e-08]